[Event "*** Titled Tuesday Blitz"]
[Site "Chess.com"]
[Date "2018.09.04"]
[Round "4"]
[White "Squirlolz"]
[Black "tony15051987"]
[Result "1-0"]
[WhiteElo "2454"]
[BlackElo "2442"]
[TimeControl "180+2"]
[EndTime "14:27:40 PDT"]
[Termination "Squirlolz won by resignation"]

1. e4 {[%clk 0:03:01.9]} 1... c5 {[%clk 0:03:00.2]} 2. c3 {[%clk 0:03:02.9]}
2... d5 {[%clk 0:03:00.3]} 3. exd5 {[%clk 0:03:04]} 3... Qxd5 {[%clk 0:03:01.2]}
4. d4 {[%clk 0:03:05.6]} 4... Nf6 {[%clk 0:03:01.1]} 5. Nf3 {[%clk 0:03:06.8]}
5... e6 {[%clk 0:03:02.3]} 6. Be3 {[%clk 0:03:03.8]} 6... cxd4 {[%clk
0:02:46.4]} 7. cxd4 {[%clk 0:03:05.7]} 7... Nc6 {[%clk 0:02:47]} 8. a3 {[%clk
0:03:05.6]} 8... Be7 {[%clk 0:02:47.5]} 9. Nc3 {[%clk 0:03:06.5]} 9... Qd6
{[%clk 0:02:48.6]} 10. Bd3 {[%clk 0:03:07.8]} 10... O-O {[%clk 0:02:49.1]} 11.
O-O {[%clk 0:03:09.4]} 11... b6 {[%clk 0:02:50]} 12. Qe2 {[%clk 0:02:59]} 12...
Bb7 {[%clk 0:02:50.5]} 13. Rad1 {[%clk 0:03:00.2]} 13... Rad8 {[%clk 0:02:46.6]}
14. Bb1 {[%clk 0:03:01.1]} 14... Qb8 {[%clk 0:02:46.8]} 15. Rfe1 {[%clk
0:02:58.2]} 15... Rfe8 {[%clk 0:02:39.4]} 16. Bg5 {[%clk 0:02:43.8]} 16... g6
{[%clk 0:02:38.3]} 17. Ba2 {[%clk 0:02:42.5]} 17... Nh5 {[%clk 0:02:23.4]} 18.
Be3 {[%clk 0:02:17.4]} 18... Bf8 {[%clk 0:02:12.5]} 19. d5 {[%clk 0:01:48.4]}
19... exd5 {[%clk 0:02:08]} 20. Nxd5 {[%clk 0:01:50.3]} 20... Ne5 {[%clk
0:01:48.6]} 21. Bg5 {[%clk 0:01:02.4]} 21... Ng4 {[%clk 0:01:24.3]} 22. Bxd8
{[%clk 0:00:38.4]} 22... Rxe2 {[%clk 0:01:17.6]} 23. Rxe2 {[%clk 0:00:40.3]}
23... Bxd5 {[%clk 0:00:27.1]} 24. Bxd5 {[%clk 0:00:39.8]} 24... Kg7 {[%clk
0:00:14.1]} 25. Bg5 {[%clk 0:00:28.3]} 25... Bc5 {[%clk 0:00:13.3]} 26. h3
{[%clk 0:00:19]} 26... Nxf2 {[%clk 0:00:11.9]} 27. Rxf2 {[%clk 0:00:16]} 27...
Qg3 {[%clk 0:00:12.4]} 28. Rd2 {[%clk 0:00:11.3]} 28... Nf4 {[%clk 0:00:13.5]}
29. Bxf4 {[%clk 0:00:09.9]} 29... Qxf4 {[%clk 0:00:14.5]} 30. Kh1 {[%clk
0:00:04.3]} 30... Bxf2 {[%clk 0:00:14.5]} 31. Rxf2 {[%clk 0:00:06.2]} 31... Qc1+
{[%clk 0:00:15.1]} 32. Ng1 {[%clk 0:00:03]} 32... Qc5 {[%clk 0:00:15.1]} 33. Rd2
{[%clk 0:00:03.7]} 33... Qe3 {[%clk 0:00:15.8]} 34. Rd1 {[%clk 0:00:04.7]} 34...
a5 {[%clk 0:00:15.6]} 35. Bf3 {[%clk 0:00:05.4]} 35... f5 {[%clk 0:00:16.2]} 36.
Ne2 {[%clk 0:00:05.3]} 36... g5 {[%clk 0:00:17.1]} 37. Nc3 {[%clk 0:00:05.9]}
37... Kg6 {[%clk 0:00:13.1]} 38. Rd6+ {[%clk 0:00:06.9]} 38... Kg7 {[%clk
0:00:13.1]} 39. Rd7+ {[%clk 0:00:08.2]} 39... Kf8 {[%clk 0:00:13]} 40. Nd5
{[%clk 0:00:09.9]} 40... Qc1+ {[%clk 0:00:13.3]} 41. Kh2 {[%clk 0:00:10.9]}
41... Qxb2 {[%clk 0:00:14.1]} 42. Rxh7 {[%clk 0:00:08.4]} 42... Qe5+ {[%clk
0:00:14.6]} 43. Kh1 {[%clk 0:00:08.9]} 43... g4 {[%clk 0:00:15.8]} 44. hxg4
{[%clk 0:00:07.7]} 44... fxg4 {[%clk 0:00:16.8]} 45. Nxb6 {[%clk 0:00:05.2]}
45... gxf3 {[%clk 0:00:16.8]} 46. Nd7+ {[%clk 0:00:05.8]} 46... Kg8 {[%clk
0:00:17.5]} 47. Nxe5 {[%clk 0:00:07.3]} 47... f2 {[%clk 0:00:18.5]} 48. Rf7
{[%clk 0:00:08.4]} 1-0

[Event "*** Titled Tuesday Blitz"]
[Site "Chess.com"]
[Date "2018.09.04"]
[Round "4"]
[White "afgano29"]
[Black "ulises2013"]
[Result "0-1"]
[WhiteElo "2684"]
[BlackElo "2549"]
[TimeControl "180+2"]
[EndTime "14:27:51 PDT"]
[Termination "ulises2013 won by resignation"]

1. d4 {[%clk 0:02:51.8]} 1... d5 {[%clk 0:02:48]} 2. c4 {[%clk 0:02:52.2]} 2...
e6 {[%clk 0:02:40]} 3. Nf3 {[%clk 0:02:52.6]} 3... Nf6 {[%clk 0:02:36.9]} 4. g3
{[%clk 0:02:53.2]} 4... dxc4 {[%clk 0:02:36.3]} 5. Bg2 {[%clk 0:02:53.5]} 5...
Nc6 {[%clk 0:02:37.5]} 6. O-O {[%clk 0:02:41.5]} 6... Rb8 {[%clk 0:02:34.4]} 7.
e3 {[%clk 0:02:28.9]} 7... Be7 {[%clk 0:02:27.9]} 8. Qe2 {[%clk 0:02:26.3]} 8...
b5 {[%clk 0:02:28.7]} 9. b3 {[%clk 0:02:26.5]} 9... cxb3 {[%clk 0:02:29.8]} 10.
axb3 {[%clk 0:02:28.4]} 10... O-O {[%clk 0:02:27.4]} 11. Bb2 {[%clk 0:02:29.1]}
11... Bb7 {[%clk 0:02:17.2]} 12. Rd1 {[%clk 0:02:02.8]} 12... a6 {[%clk
0:02:03.5]} 13. Ne5 {[%clk 0:01:45.3]} 13... Nb4 {[%clk 0:01:51.3]} 14. e4
{[%clk 0:01:11.9]} 14... c5 {[%clk 0:01:32.2]} 15. dxc5 {[%clk 0:00:59.6]} 15...
Qc7 {[%clk 0:01:32.8]} 16. Ng4 {[%clk 0:00:53.5]} 16... Nxg4 {[%clk 0:00:56.4]}
17. Qxg4 {[%clk 0:00:55.4]} 17... e5 {[%clk 0:00:54.7]} 18. Nc3 {[%clk
0:00:21.6]} 18... Qxc5 {[%clk 0:00:42.8]} 19. Rac1 {[%clk 0:00:21.5]} 19... Qb6
{[%clk 0:00:37.9]} 20. Nd5 {[%clk 0:00:21.2]} 20... Nxd5 {[%clk 0:00:34.9]} 21.
exd5 {[%clk 0:00:23.1]} 21... Qd6 {[%clk 0:00:33.7]} 22. Re1 {[%clk 0:00:20.8]}
22... Bf6 {[%clk 0:00:32]} 23. Red1 {[%clk 0:00:21.5]} 23... Rbc8 {[%clk
0:00:28.5]} 24. h4 {[%clk 0:00:21.5]} 24... Rfd8 {[%clk 0:00:22.3]} 25. Rxc8
{[%clk 0:00:21.8]} 25... Bxc8 {[%clk 0:00:21.7]} 26. Qe2 {[%clk 0:00:19.5]}
26... Bb7 {[%clk 0:00:21.5]} 27. Be4 {[%clk 0:00:19.6]} 27... g6 {[%clk
0:00:20]} 28. h5 {[%clk 0:00:20.8]} 28... Kg7 {[%clk 0:00:21.3]} 29. Qd2 {[%clk
0:00:19.7]} 29... Rc8 {[%clk 0:00:21.3]} 30. h6+ {[%clk 0:00:19.6]} 30... Kg8
{[%clk 0:00:22.2]} 31. Kg2 {[%clk 0:00:19.9]} 31... Rc7 {[%clk 0:00:20.4]} 32.
Qe3 {[%clk 0:00:19.5]} 32... Bc8 {[%clk 0:00:13.6]} 33. Qf3 {[%clk 0:00:19.3]}
33... Bh8 {[%clk 0:00:13.2]} 34. g4 {[%clk 0:00:17.2]} 34... Bd7 {[%clk
0:00:11.2]} 35. g5 {[%clk 0:00:17.1]} 35... f6 {[%clk 0:00:11.2]} 36. gxf6
{[%clk 0:00:16.6]} 36... Qxf6 {[%clk 0:00:12.7]} 37. d6 {[%clk 0:00:17.3]} 37...
Qxf3+ {[%clk 0:00:12.3]} 38. Kxf3 {[%clk 0:00:17.7]} 38... Rc8 {[%clk
0:00:10.9]} 39. Bd5+ {[%clk 0:00:18.5]} 39... Kf8 {[%clk 0:00:12]} 40. Re1
{[%clk 0:00:19.7]} 40... Re8 {[%clk 0:00:11.3]} 41. Ra1 {[%clk 0:00:19.1]} 41...
e4+ {[%clk 0:00:12]} 42. Bxe4 {[%clk 0:00:20]} 42... Bxb2 {[%clk 0:00:13.9]} 43.
Rxa6 {[%clk 0:00:21]} 43... Be5 {[%clk 0:00:12.5]} 44. Ra7 {[%clk 0:00:21.7]}
44... Rd8 {[%clk 0:00:11.4]} 45. Ra6 {[%clk 0:00:22]} 45... Kf7 {[%clk
0:00:11.8]} 46. Bd5+ {[%clk 0:00:22.6]} 46... Kf6 {[%clk 0:00:13]} 47. Ke4
{[%clk 0:00:24.1]} 47... Bf5+ {[%clk 0:00:13.9]} 48. Ke3 {[%clk 0:00:20.7]}
48... Rxd6 {[%clk 0:00:15.8]} 49. Bc6 {[%clk 0:00:14.6]} 49... Bd7 {[%clk
0:00:14.7]} 50. f4 {[%clk 0:00:13]} 50... Bd4+ {[%clk 0:00:10.3]} 0-1

[Event "*** Titled Tuesday Blitz"]
[Site "Chess.com"]
[Date "2018.09.04"]
[Round "4"]
[White "PaulfromSPb"]
[Black "metra93"]
[Result "0-1"]
[WhiteElo "2634"]
[BlackElo "2489"]
[TimeControl "180+2"]
[EndTime "14:27:53 PDT"]
[Termination "metra93 won by resignation"]

1. d4 {[%clk 0:03:01.9]} 1... d5 {[%clk 0:03:00.7]} 2. Bg5 {[%clk 0:03:02.2]}
2... h6 {[%clk 0:02:59.2]} 3. Bh4 {[%clk 0:03:02.6]} 3... c6 {[%clk 0:03:00.5]}
4. c3 {[%clk 0:03:03.2]} 4... Qb6 {[%clk 0:02:58.3]} 5. Qb3 {[%clk 0:03:03.9]}
5... Nd7 {[%clk 0:02:59.1]} 6. Nd2 {[%clk 0:03:00.2]} 6... e5 {[%clk 0:02:54.8]}
7. e3 {[%clk 0:03:00.5]} 7... Bd6 {[%clk 0:02:50.5]} 8. Bg3 {[%clk 0:02:59.3]}
8... Ne7 {[%clk 0:02:49.2]} 9. Ngf3 {[%clk 0:02:59.6]} 9... Qc7 {[%clk
0:02:36.9]} 10. dxe5 {[%clk 0:02:53.8]} 10... Nxe5 {[%clk 0:02:38.8]} 11. Be2
{[%clk 0:02:53.1]} 11... O-O {[%clk 0:02:37.5]} 12. O-O {[%clk 0:02:45.9]} 12...
Nxf3+ {[%clk 0:02:38.3]} 13. Nxf3 {[%clk 0:02:44.2]} 13... Bxg3 {[%clk
0:02:40.2]} 14. hxg3 {[%clk 0:02:44.7]} 14... Be6 {[%clk 0:02:42.1]} 15. Nd4
{[%clk 0:02:41.9]} 15... Nf5 {[%clk 0:02:23.1]} 16. Nxe6 {[%clk 0:02:35]} 16...
fxe6 {[%clk 0:02:23.6]} 17. c4 {[%clk 0:02:36.3]} 17... Nd6 {[%clk 0:02:18.1]}
18. Rac1 {[%clk 0:02:35]} 18... Qf7 {[%clk 0:02:16.1]} 19. cxd5 {[%clk
0:02:28.7]} 19... exd5 {[%clk 0:02:16.9]} 20. Bd3 {[%clk 0:02:27.5]} 20... Kh8
{[%clk 0:02:16]} 21. Qb4 {[%clk 0:02:22.2]} 21... Rad8 {[%clk 0:02:11.9]} 22. a4
{[%clk 0:02:20.9]} 22... a6 {[%clk 0:01:58.2]} 23. b3 {[%clk 0:02:15.3]} 23...
Rfe8 {[%clk 0:01:59.4]} 24. g4 {[%clk 0:02:01.3]} 24... Ne4 {[%clk 0:01:58.8]}
25. f3 {[%clk 0:02:00]} 25... Nf6 {[%clk 0:01:54.4]} 26. Qd2 {[%clk 0:01:58.5]}
26... Qe7 {[%clk 0:01:51.4]} 27. Rfe1 {[%clk 0:01:57.8]} 27... Qd6 {[%clk
0:01:46.3]} 28. Bb1 {[%clk 0:01:53.5]} 28... Re7 {[%clk 0:01:46]} 29. Qd3 {[%clk
0:01:49.6]} 29... Qg3 {[%clk 0:01:33]} 30. Qf1 {[%clk 0:01:38.3]} 30... Rde8
{[%clk 0:01:32.5]} 31. Qf2 {[%clk 0:01:39.2]} 31... Qd6 {[%clk 0:01:31.7]} 32.
Rcd1 {[%clk 0:01:05]} 32... Qc5 {[%clk 0:01:31]} 33. Rd3 {[%clk 0:01:02.3]}
33... Kg8 {[%clk 0:01:29]} 34. Kh1 {[%clk 0:00:59.3]} 34... Rf8 {[%clk
0:01:17.6]} 35. Qg3 {[%clk 0:00:57.4]} 35... Nd7 {[%clk 0:01:08.3]} 36. Rd4
{[%clk 0:00:54.4]} 36... Rfe8 {[%clk 0:01:02.6]} 37. Qf4 {[%clk 0:00:48.9]}
37... Rf8 {[%clk 0:00:55]} 38. Qg3 {[%clk 0:00:47.2]} 38... Rfe8 {[%clk
0:00:56]} 39. g5 {[%clk 0:00:38.1]} 39... hxg5 {[%clk 0:00:49.6]} 40. Qh3 {[%clk
0:00:23.9]} 40... Nf6 {[%clk 0:00:40.1]} 41. Rd3 {[%clk 0:00:17.1]} 41... g4
{[%clk 0:00:34.3]} 42. fxg4 {[%clk 0:00:17.2]} 42... Qb4 {[%clk 0:00:34.4]} 43.
Rf1 {[%clk 0:00:16.8]} 43... Qxg4 {[%clk 0:00:34]} 44. Rf3 {[%clk 0:00:10]}
44... Qxh3+ {[%clk 0:00:33.1]} 45. gxh3 {[%clk 0:00:11.3]} 45... Nd7 {[%clk
0:00:32.1]} 46. Kg2 {[%clk 0:00:11.5]} 46... Ne5 {[%clk 0:00:33.2]} 47. Rc3
{[%clk 0:00:11.3]} 47... Nxf3 {[%clk 0:00:34.4]} 48. Kxf3 {[%clk 0:00:13.2]}
48... Rf8+ {[%clk 0:00:36.2]} 49. Ke2 {[%clk 0:00:14]} 49... Rf6 {[%clk
0:00:38.1]} 50. Bc2 {[%clk 0:00:14.3]} 50... d4 {[%clk 0:00:39]} 51. Rd3 {[%clk
0:00:14.8]} 51... Rxe3+ {[%clk 0:00:40.1]} 52. Rxe3 {[%clk 0:00:16]} 52... dxe3
{[%clk 0:00:42]} 53. Kxe3 {[%clk 0:00:17.9]} 53... Rd6 {[%clk 0:00:43.6]} 54.
Bd3 {[%clk 0:00:18.6]} 54... a5 {[%clk 0:00:44.3]} 55. Ke4 {[%clk 0:00:18.2]}
55... Kf7 {[%clk 0:00:45]} 56. Bc4+ {[%clk 0:00:19.5]} 56... Ke7 {[%clk
0:00:46.1]} 57. Ke5 {[%clk 0:00:20.7]} 57... Rh6 {[%clk 0:00:47.2]} 58. Bf1
{[%clk 0:00:21.2]} 58... Rh5+ {[%clk 0:00:48.5]} 59. Kd4 {[%clk 0:00:21.8]}
59... Kd6 {[%clk 0:00:49.7]} 60. Bg2 {[%clk 0:00:23]} 60... Rh4+ {[%clk
0:00:50.6]} 61. Kd3 {[%clk 0:00:23.7]} 61... Kc5 {[%clk 0:00:51.9]} 62. Kc3
{[%clk 0:00:24.7]} 62... Rf4 {[%clk 0:00:51.5]} 0-1

[Event "*** Titled Tuesday Blitz"]
[Site "Chess.com"]
[Date "2018.09.04"]
[Round "4"]
[White "Nowaybacksasha"]
[Black "dretch"]
[Result "0-1"]
[WhiteElo "2807"]
[BlackElo "2776"]
[TimeControl "180+2"]
[EndTime "14:27:55 PDT"]
[Termination "dretch won on time"]

1. d4 {[%clk 0:03:01.9]} 1... d5 {[%clk 0:02:48.9]} 2. c4 {[%clk 0:03:03.4]}
2... c6 {[%clk 0:02:49.4]} 3. Nf3 {[%clk 0:03:04.6]} 3... Nf6 {[%clk 0:02:50.2]}
4. Nc3 {[%clk 0:03:06.3]} 4... dxc4 {[%clk 0:02:51]} 5. e4 {[%clk 0:03:07]} 5...
b5 {[%clk 0:02:51.5]} 6. Be2 {[%clk 0:03:08.5]} 6... e6 {[%clk 0:02:48.9]} 7.
O-O {[%clk 0:03:09.6]} 7... Bb7 {[%clk 0:02:49.5]} 8. e5 {[%clk 0:03:09.2]} 8...
Nd5 {[%clk 0:02:50]} 9. a4 {[%clk 0:03:10.8]} 9... h6 {[%clk 0:02:46.7]} 10. Ne4
{[%clk 0:03:10.5]} 10... Nd7 {[%clk 0:02:45.9]} 11. Bd2 {[%clk 0:03:10.8]} 11...
a6 {[%clk 0:02:45.1]} 12. b3 {[%clk 0:03:11.7]} 12... cxb3 {[%clk 0:02:42.5]}
13. Qxb3 {[%clk 0:03:13.6]} 13... Be7 {[%clk 0:02:43.1]} 14. Ne1 {[%clk
0:03:15.2]} 14... O-O {[%clk 0:02:39.8]} 15. Qg3 {[%clk 0:03:16.3]} 15... Kh8
{[%clk 0:02:37.5]} 16. Qh3 {[%clk 0:03:17.3]} 16... Kg8 {[%clk 0:02:30.2]} 17.
Bxh6 {[%clk 0:03:09.1]} 17... gxh6 {[%clk 0:02:31.1]} 18. Qxh6 {[%clk
0:03:10.7]} 18... Re8 {[%clk 0:02:30.5]} 19. Bh5 {[%clk 0:02:22.1]} 19... Bf8
{[%clk 0:01:46.4]} 20. Bxf7+ {[%clk 0:02:20.4]} 20... Kxf7 {[%clk 0:01:47.9]}
21. Qh7+ {[%clk 0:01:41]} 21... Bg7 {[%clk 0:01:47.9]} 22. Nd6+ {[%clk
0:01:42.6]} 22... Kf8 {[%clk 0:01:43.7]} 23. Ra3 {[%clk 0:01:44]} 23... Nf4
{[%clk 0:01:29.7]} 24. Rf3 {[%clk 0:01:16.9]} 24... Qg5 {[%clk 0:01:28.8]} 25.
g3 {[%clk 0:01:17.4]} 25... Ke7 {[%clk 0:01:00.3]} 26. Rxf4 {[%clk 0:01:17.3]}
26... Rf8 {[%clk 0:01:00.9]} 27. h4 {[%clk 0:00:22.8]} 27... Qh6 {[%clk
0:00:46.8]} 28. Qxh6 {[%clk 0:00:24.1]} 28... Bxh6 {[%clk 0:00:47.7]} 29. Rxf8
{[%clk 0:00:25.8]} 29... Bxf8 {[%clk 0:00:42.8]} 30. Nxb7 {[%clk 0:00:26.9]}
30... bxa4 {[%clk 0:00:34.7]} 31. Nc2 {[%clk 0:00:27.3]} 31... Rb8 {[%clk
0:00:33.8]} 32. Na5 {[%clk 0:00:26.5]} 32... Rb2 {[%clk 0:00:33.3]} 33. Nxc6+
{[%clk 0:00:22.2]} 33... Ke8 {[%clk 0:00:32.8]} 34. Rc1 {[%clk 0:00:18.4]} 34...
a3 {[%clk 0:00:28.5]} 35. Nxa3 {[%clk 0:00:16.1]} 35... Bxa3 {[%clk 0:00:30.4]}
36. Ra1 {[%clk 0:00:16.8]} 36... Rb3 {[%clk 0:00:30.5]} 37. Kg2 {[%clk
0:00:14.6]} 37... Rb6 {[%clk 0:00:19.8]} 38. Na5 {[%clk 0:00:13.8]} 38... Bb2
{[%clk 0:00:20]} 39. Rd1 {[%clk 0:00:13]} 39... Rb4 {[%clk 0:00:20.6]} 40. d5
{[%clk 0:00:09.8]} 40... Nxe5 {[%clk 0:00:20.6]} 41. dxe6 {[%clk 0:00:09.4]}
41... Rb5 {[%clk 0:00:21.6]} 42. f4 {[%clk 0:00:03.1]} 42... Rxa5 {[%clk
0:00:20.5]} 43. fxe5 {[%clk 0:00:03.8]} 43... Rxe5 {[%clk 0:00:21.1]} 44. Rd6
{[%clk 0:00:05.1]} 44... a5 {[%clk 0:00:20.8]} 45. Ra6 {[%clk 0:00:05.8]} 45...
Bc3 {[%clk 0:00:20.8]} 46. Kf3 {[%clk 0:00:04.7]} 46... Ke7 {[%clk 0:00:20.9]}
47. g4 {[%clk 0:00:05.8]} 47... Rxe6 {[%clk 0:00:21.9]} 48. Ra7+ {[%clk
0:00:07.5]} 48... Kf6 {[%clk 0:00:21.9]} 49. g5+ {[%clk 0:00:06.9]} 49... Kg6
{[%clk 0:00:21.9]} 50. Rc7 {[%clk 0:00:03.9]} 50... Bb4 {[%clk 0:00:21.6]} 51.
Ra7 {[%clk 0:00:03.4]} 51... Rc6 {[%clk 0:00:20.5]} 0-1

[Event "*** Titled Tuesday Blitz"]
[Site "Chess.com"]
[Date "2018.09.04"]
[Round "4"]
[White "Margency"]
[Black "wannabe2700"]
[Result "1-0"]
[WhiteElo "2698"]
[BlackElo "2587"]
[TimeControl "180+2"]
[EndTime "14:28:20 PDT"]
[Termination "Margency won by resignation"]

1. e4 {[%clk 0:03:01.9]} 1... e5 {[%clk 0:03:00.4]} 2. Nf3 {[%clk 0:03:02.5]}
2... Nc6 {[%clk 0:03:01.9]} 3. Bc4 {[%clk 0:03:03.7]} 3... Nf6 {[%clk
0:03:02.9]} 4. d3 {[%clk 0:03:04.8]} 4... Bc5 {[%clk 0:03:04]} 5. O-O {[%clk
0:03:05.9]} 5... d6 {[%clk 0:03:05.5]} 6. c3 {[%clk 0:03:07]} 6... O-O {[%clk
0:03:06.6]} 7. h3 {[%clk 0:03:07.7]} 7... a5 {[%clk 0:03:07.8]} 8. Bb3 {[%clk
0:03:06.6]} 8... h6 {[%clk 0:03:09.1]} 9. Nbd2 {[%clk 0:03:06.5]} 9... Re8
{[%clk 0:03:09.6]} 10. Re1 {[%clk 0:03:07.4]} 10... Be6 {[%clk 0:03:10.3]} 11.
Bc2 {[%clk 0:03:08.2]} 11... Qb8 {[%clk 0:03:02.5]} 12. Nf1 {[%clk 0:03:09.2]}
12... Qa7 {[%clk 0:03:03.9]} 13. Be3 {[%clk 0:03:10.3]} 13... Bxe3 {[%clk
0:03:01.6]} 14. Nxe3 {[%clk 0:03:10.1]} 14... a4 {[%clk 0:03:02.7]} 15. a3
{[%clk 0:02:46.8]} 15... d5 {[%clk 0:02:54.3]} 16. exd5 {[%clk 0:02:41.3]} 16...
Nxd5 {[%clk 0:02:52.9]} 17. Ng4 {[%clk 0:02:29.6]} 17... Bxg4 {[%clk 0:02:32.4]}
18. hxg4 {[%clk 0:02:30.1]} 18... Nf4 {[%clk 0:02:30.6]} 19. Qd2 {[%clk
0:02:16.9]} 19... Rad8 {[%clk 0:02:28.7]} 20. Re4 {[%clk 0:02:10.6]} 20... b5
{[%clk 0:02:26]} 21. Rae1 {[%clk 0:02:09.6]} 21... f6 {[%clk 0:02:23.3]} 22. d4
{[%clk 0:01:55.6]} 22... Rf8 {[%clk 0:02:23.7]} 23. Qc1 {[%clk 0:01:49.2]} 23...
Rd6 {[%clk 0:01:58.5]} 24. dxe5 {[%clk 0:01:19.1]} 24... fxe5 {[%clk 0:02:00.4]}
25. Qe3 {[%clk 0:01:19.3]} 25... Qxe3 {[%clk 0:01:57]} 26. R4xe3 {[%clk
0:01:16.7]} 26... Nd5 {[%clk 0:01:50.8]} 27. R3e2 {[%clk 0:01:10.5]} 27... Nf4
{[%clk 0:01:49.1]} 28. Re4 {[%clk 0:01:09.5]} 28... Ng6 {[%clk 0:01:40.7]} 29.
R4e3 {[%clk 0:01:08.3]} 29... Rf4 {[%clk 0:01:23.7]} 30. g3 {[%clk 0:00:54]}
30... Rxg4 {[%clk 0:01:07.5]} 31. Bf5 {[%clk 0:00:53]} 31... Rc4 {[%clk
0:01:08.1]} 32. R3e2 {[%clk 0:00:45.4]} 32... Rc5 {[%clk 0:01:05.7]} 33. Nd2
{[%clk 0:00:45.4]} 33... Nce7 {[%clk 0:00:53.2]} 34. Ne4 {[%clk 0:00:42.3]}
34... Rcc6 {[%clk 0:00:33.7]} 35. Nxd6 {[%clk 0:00:40.1]} 35... cxd6 {[%clk
0:00:35.6]} 36. Bxg6 {[%clk 0:00:39.8]} 36... Nxg6 {[%clk 0:00:36.1]} 37. Rd2
{[%clk 0:00:41.1]} 37... Kf7 {[%clk 0:00:37.2]} 38. Re4 {[%clk 0:00:37.4]} 38...
Kf6 {[%clk 0:00:37.6]} 39. Rb4 {[%clk 0:00:37.7]} 39... Ne7 {[%clk 0:00:33.3]}
40. Rxb5 {[%clk 0:00:37.6]} 40... d5 {[%clk 0:00:28.4]} 41. Rb4 {[%clk 0:00:36]}
41... e4 {[%clk 0:00:26.9]} 42. Rxa4 {[%clk 0:00:35.7]} 42... Ke5 {[%clk
0:00:27.8]} 43. Rad4 {[%clk 0:00:35.3]} 43... Rc5 {[%clk 0:00:27.9]} 44. Rb4
{[%clk 0:00:32.8]} 44... Nf5 {[%clk 0:00:28.9]} 45. a4 {[%clk 0:00:30.2]} 45...
Nd6 {[%clk 0:00:28.6]} 46. Kf1 {[%clk 0:00:28.4]} 46... Nc4 {[%clk 0:00:28.7]}
47. Rd4 {[%clk 0:00:25.2]} 47... Nd6 {[%clk 0:00:18.5]} 48. Ke2 {[%clk 0:00:24]}
48... g5 {[%clk 0:00:19.4]} 49. g4 {[%clk 0:00:21.5]} 49... Kf4 {[%clk
0:00:19.7]} 50. f3 {[%clk 0:00:22.9]} 50... Ke5 {[%clk 0:00:07.3]} 51. fxe4
{[%clk 0:00:22.6]} 51... dxe4 {[%clk 0:00:07.3]} 52. Rb6 {[%clk 0:00:23.1]}
52... Nc4 {[%clk 0:00:07.5]} 53. Rb5 {[%clk 0:00:23.7]} 53... Rxb5 {[%clk
0:00:08.2]} 54. axb5 {[%clk 0:00:24.7]} 54... Nb6 {[%clk 0:00:07.1]} 55. Ke3
{[%clk 0:00:22.7]} 55... Nd5+ {[%clk 0:00:08.4]} 56. Rxd5+ {[%clk 0:00:23.7]}
56... Kxd5 {[%clk 0:00:10.3]} 57. c4+ {[%clk 0:00:24.7]} 57... Ke5 {[%clk
0:00:10.5]} 58. b6 {[%clk 0:00:24.7]} 58... h5 {[%clk 0:00:12]} 59. b7 {[%clk
0:00:24.3]} 1-0

[Event "*** Titled Tuesday Blitz"]
[Site "Chess.com"]
[Date "2018.09.04"]
[Round "4"]
[White "ramses135"]
[Black "Orest_Vovk"]
[Result "1/2-1/2"]
[WhiteElo "2519"]
[BlackElo "2416"]
[TimeControl "180+2"]
[EndTime "14:28:22 PDT"]
[Termination "Game drawn by agreement"]

1. e4 {[%clk 0:03:01.4]} 1... Nc6 {[%clk 0:02:58.1]} 2. Nf3 {[%clk 0:02:59.8]}
2... f5 {[%clk 0:02:57.7]} 3. exf5 {[%clk 0:02:54.1]} 3... d5 {[%clk 0:02:58.6]}
4. Bb5 {[%clk 0:02:35.9]} 4... Bxf5 {[%clk 0:02:58.4]} 5. Ne5 {[%clk 0:02:32.6]}
5... Qd6 {[%clk 0:02:56]} 6. d4 {[%clk 0:02:32.2]} 6... Nf6 {[%clk 0:02:56.3]}
7. O-O {[%clk 0:02:30]} 7... Nd7 {[%clk 0:02:56.7]} 8. Bf4 {[%clk 0:02:26.4]}
8... Ndxe5 {[%clk 0:02:57.5]} 9. Bxe5 {[%clk 0:02:25.1]} 9... Qg6 {[%clk
0:02:58.9]} 10. Bxc7 {[%clk 0:02:07.6]} 10... Bxc2 {[%clk 0:02:46.3]} 11. Qf3
{[%clk 0:01:20.1]} 11... a6 {[%clk 0:02:29.8]} 12. Bxc6+ {[%clk 0:01:10.7]}
12... bxc6 {[%clk 0:02:29.8]} 13. Nd2 {[%clk 0:00:56.8]} 13... Kd7 {[%clk
0:02:25.7]} 14. Bg3 {[%clk 0:00:54.8]} 14... e6 {[%clk 0:02:26]} 15. Rac1 {[%clk
0:00:48.6]} 15... Bb4 {[%clk 0:02:19.4]} 16. Nb3 {[%clk 0:00:33.2]} 16... Rhf8
{[%clk 0:02:08.8]} 17. Qe3 {[%clk 0:00:31.7]} 17... Qf5 {[%clk 0:01:04.7]} 18.
Nc5+ {[%clk 0:00:15.9]} 18... Bxc5 {[%clk 0:01:05]} 19. dxc5 {[%clk 0:00:17.8]}
19... Bd3 {[%clk 0:00:41]} 20. Rfe1 {[%clk 0:00:18.6]} 20... Bb5 {[%clk
0:00:40.6]} 21. Qc3 {[%clk 0:00:16.5]} 21... a5 {[%clk 0:00:34.3]} 22. Qxg7+
{[%clk 0:00:16.3]} 22... Rf7 {[%clk 0:00:35.3]} 23. Qd4 {[%clk 0:00:15.9]} 23...
a4 {[%clk 0:00:31]} 24. Re5 {[%clk 0:00:16.5]} 24... Qf6 {[%clk 0:00:28.6]} 25.
Rce1 {[%clk 0:00:16.4]} 25... Re8 {[%clk 0:00:25.6]} 26. Qc3 {[%clk 0:00:15.1]}
26... Rfe7 {[%clk 0:00:17.4]} 27. Qa5 {[%clk 0:00:14.7]} 27... Rc8 {[%clk
0:00:18.1]} 28. h3 {[%clk 0:00:11.3]} 28... Ke8 {[%clk 0:00:16.2]} 29. Qd2
{[%clk 0:00:08.9]} 29... Kd7 {[%clk 0:00:16.7]} 30. R1e3 {[%clk 0:00:08.8]}
30... Qh6 {[%clk 0:00:13.1]} 31. Qa5 {[%clk 0:00:08.6]} 31... Qg6 {[%clk
0:00:11]} 32. Kh2 {[%clk 0:00:07.8]} 32... h6 {[%clk 0:00:11.1]} 33. Rf3 {[%clk
0:00:07.9]} 33... Bc4 {[%clk 0:00:08.3]} 34. Qxa4 {[%clk 0:00:07.6]} 34... Bd3
{[%clk 0:00:09.2]} 35. Rfe3 {[%clk 0:00:06.3]} 35... Be4 {[%clk 0:00:09.8]} 36.
f3 {[%clk 0:00:06.7]} 36... Bf5 {[%clk 0:00:10.7]} 37. Qf4 {[%clk 0:00:04.7]}
37... Rg8 {[%clk 0:00:10.6]} 38. Re1 {[%clk 0:00:03.7]} 38... Reg7 {[%clk
0:00:11.5]} 39. Rxf5 {[%clk 0:00:02.7]} 39... Qxg3+ {[%clk 0:00:11.4]} 40. Qxg3
{[%clk 0:00:03.5]} 40... Rxg3 {[%clk 0:00:13.3]} 41. Rf7+ {[%clk 0:00:04.8]}
41... Ke8 {[%clk 0:00:14.4]} 42. Rf6 {[%clk 0:00:05.5]} 42... Rxg2+ {[%clk
0:00:15.1]} 43. Kh1 {[%clk 0:00:07]} 43... Rxb2 {[%clk 0:00:14.6]} 44. Rfxe6+
{[%clk 0:00:06.6]} 44... Kf7 {[%clk 0:00:15.9]} 45. Rxc6 {[%clk 0:00:06.8]}
45... Rgg2 {[%clk 0:00:15.5]} 46. Rxh6 {[%clk 0:00:04.8]} 46... Rxa2 {[%clk
0:00:14.6]} 47. c6 {[%clk 0:00:04.9]} 47... Rh2+ {[%clk 0:00:14.2]} 48. Kg1
{[%clk 0:00:05.6]} 48... Rag2+ {[%clk 0:00:16.1]} 49. Kf1 {[%clk 0:00:06.8]}
49... Rc2 {[%clk 0:00:18]} 50. Kg1 {[%clk 0:00:07.2]} 50... Rhg2+ {[%clk
0:00:18.9]} 51. Kh1 {[%clk 0:00:07.9]} 51... Rgf2 {[%clk 0:00:16.8]} 52. Rd6
{[%clk 0:00:07.6]} 52... Rxf3 {[%clk 0:00:16.2]} 53. Rxd5 {[%clk 0:00:07.9]}
53... Rxh3+ {[%clk 0:00:17.3]} 54. Kg1 {[%clk 0:00:09.2]} 54... Rxc6 {[%clk
0:00:18.4]} 55. Rd2 {[%clk 0:00:09]} 55... Rg3+ {[%clk 0:00:17.6]} 56. Rg2
{[%clk 0:00:09.8]} 56... Rxg2+ {[%clk 0:00:17.1]} 57. Kxg2 {[%clk 0:00:11.6]}
1/2-1/2